bitfinex-derivatives/quotes_ETHF0:USTF0_20230401
["timestamp","ask_amount","ask_price","bid_price","bid_amount"]
[1680360292392,2.78965743,1819.4,1819.3,7.98560247]
[1680360293495,2.10803377,1819.4,1819.3,7.98560247]
[1680360293792,0.68162416,1819.4,1819.3,7.98560247]
[1680360295786,2.10803377,1819.4,1819.3,5.88560247]
[1680360295993,1.36323262,1819.4,1819.3,5.88560247]
[1680360296293,1.36323262,1819.4,1819.1,6.25746882]
[1680360296496,3.2078,1819.2,1819.1,6.25746882]
[1680360296799,1.42524438,1819.3,1819.1,6.25746882]
[1680360296992,2.10689715,1819.3,1819.2,1.0]
[1680360297292,3.88942416,1819.4,1819.2,7.70621156]
[1680360299487,3.2078,1819.5,1819.2,7.70621156]
[1680360299692,16.25291601,1819.9,1819.2,12.09921156]
[1680360299693,0.8556248,1819.4,1819.2,12.09921156]
[1680360299892,0.28168338,1819.4,1819.3,1.15022408]
[1680360300193,0.28168338,1819.4,1819.3,4.35802408]
[1680360300499,4.2078,1819.8,1819.4,1.0]
[1680360300698,5.92061719,1819.8,1819.6,1.089]
[1680360300889,4.92061719,1819.8,1819.6,1.089]
[1680360301087,4.92061719,1819.8,1819.7,0.18676896]
[1680360301492,18.10823029,1819.8,1819.7,0.18676896]
[1680360303099,18.10823029,1819.8,1819.5,5.88086007]
[1680360303299,1.0,1819.7,1819.5,5.88086007]
[1680360304299,4.92061719,1819.8,1819.5,5.88086007]
[1680360304498,1.71281719,1819.9,1819.5,14.58166007]
[1680360304698,1.71281719,1820.0,1819.8,1.098]
[1680360305009,6.01661719,1820.0,1819.9,5.7185169]
[1680360305301,6.01661719,1820.0,1819.6,8.39359357]
[1680360305702,6.01661719,1820.0,1819.6,7.39359357]
[1680360306297,6.01661719,1820.0,1819.7,0.04658631]
[1680360306498,6.01661719,1820.0,1819.7,1.04658631]
[1680360306693,2.80881719,1820.0,1819.8,5.95825373]
[1680360306892,3.2078,1819.9,1819.8,5.95825373]
[1680360308106,4.92061719,1820.1,1819.8,5.95825373]
[1680360308808,4.92061719,1820.1,1819.9,1.0]
[1680360309194,3.2078,1820.1,1820.0,5.90500255]
[1680360310401,3.2078,1820.1,1820.0,5.75357346]
[1680360312097,4.92061719,1820.3,1820.0,5.75357346]
[1680360314105,4.92061719,1820.3,1820.1,1.0]
[1680360314409,4.92061719,1820.3,1820.2,6.03754883]
[1680360314705,4.92061719,1820.3,1820.2,5.5643419]
[1680360314903,1.71281719,1820.3,1820.2,6.6643419]
[1680360315107,1.71281719,1820.4,1820.2,6.6643419]
[1680360316204,4.92061719,1820.5,1820.2,6.6643419]
[1680360317104,6.01761719,1820.5,1820.2,5.5643419]
[1680360317304,1.42452785,1820.3,1820.2,5.5643419]
[1680360318114,1.42452785,1820.4,1820.2,6.5643419]
[1680360318313,5.72932785,1820.5,1820.2,6.5643419]
[1680360318609,5.72932785,1820.5,1820.3,1.0]
[1680360319112,5.72932785,1820.5,1820.4,5.89819075]
[1680360319508,4.63232785,1820.5,1820.4,5.95248178]
[1680360319708,5.31358137,1820.5,1820.4,5.95248178]
[1680360321606,5.31357634,1820.5,1820.4,5.95248178]
[1680360323014,4.63232785,1820.5,1820.4,5.95248178]
[1680360323910,1.42452785,1820.6,1820.4,5.95248178]
[1680360324112,1.13905398,1820.5,1820.4,5.95248178]
[1680360325216,1.13905398,1820.5,1820.4,6.95248178]
[1680360325410,1.13905398,1820.6,1820.4,6.95248178]
[1680360325614,1.13905398,1820.6,1820.5,1.0]
[1680360325910,1.13905398,1820.6,1820.5,7.11018484]
[1680360326414,1.13905398,1820.6,1820.5,6.11018484]
[1680360334325,1.13905398,1820.6,1820.5,6.16942406]
[1680360340422,1.13905398,1820.6,1820.5,6.01805291]
[1680360341117,4.34685398,1820.7,1820.5,6.01805291]
[1680360341728,1.13905398,1820.6,1820.5,6.01805291]
[1680360345519,2.10570673,1820.6,1820.5,6.01805291]
[1680360345724,1.42452785,1820.6,1820.5,6.01805291]
[1680360346428,2.10568919,1820.7,1820.5,6.01805291]
[1680360346628,1.42452785,1820.6,1820.5,6.01805291]
[1680360347525,2.10569076,1820.7,1820.5,6.01805291]
[1680360347723,1.42452785,1820.7,1820.5,6.01805291]
[1680360347924,1.13955718,1820.6,1820.5,6.01805291]
[1680360348117,4.63232785,1820.7,1820.5,6.01805291]
[1680360348624,1.42452785,1820.6,1820.5,6.01805291]
[1680360350332,2.10569809,1820.6,1820.5,6.01805291]
[1680360352432,0.68117024,1820.6,1820.5,6.01805291]
[1680360359038,13.8618251,1820.6,1820.5,6.01805291]
[1680360359440,14.95623043,1820.6,1820.5,0.05923922]
[1680360359740,1.77517024,1820.6,1820.1,5.9146]
[1680360359937,4.35073097,1820.3,1820.1,5.9146]
[1680360360240,4.35073097,1820.3,1820.2,0.05916405]
[1680360360541,4.35073097,1820.3,1820.2,6.30780301]
[1680360360742,3.2078,1820.3,1820.2,6.24863896]
[1680360360943,4.63646372,1820.3,1820.2,6.24863896]
[1680360361235,3.2078,1820.3,1820.2,6.24863896]
[1680360362145,4.63646372,1820.3,1820.2,6.24863896]
[1680360362344,5.31766795,1820.3,1820.2,6.24863896]
[1680360363247,1.42866372,1820.3,1820.2,6.24863896]
[1680360364448,4.63646372,1820.3,1820.2,6.30779072]
[1680360364651,5.31764748,1820.3,1820.2,6.30779072]
[1680360365352,2.10984748,1820.3,1820.2,6.30779072]
[1680360365847,2.10984748,1820.3,1820.2,7.30779072]
[1680360366053,2.10984748,1820.3,1820.2,6.30779072]
[1680360366547,2.10984748,1820.3,1820.2,7.30779072]
[1680360366948,2.10984748,1820.3,1820.2,6.30779072]
[1680360367650,2.10984748,1820.3,1820.2,7.30779072]
[1680360367852,2.10984748,1820.3,1820.2,6.30779072]
[1680360368152,1.42866372,1820.3,1820.2,7.30779072]
[1680360368451,1.42866372,1820.3,1820.2,6.30779072]
[1680360368756,1.42866372,1820.3,1820.2,7.30779072]
[1680360369052,1.42866372,1820.3,1820.2,6.30779072]
[1680360369454,1.42866372,1820.3,1820.2,8.39679072]
[1680360369649,2.10983292,1820.3,1820.2,8.39679072]
[1680360370757,1.42866372,1820.3,1820.2,8.39679072]
[1680360374458,1.42866372,1820.4,1820.2,8.39679072]
[1680360374662,1.42866372,1820.4,1820.3,1.0]
[1680360375051,1.42866372,1820.4,1820.3,7.12649504]
[1680360377056,1.42866372,1820.4,1820.3,8.22649504]
[1680360378359,1.42866372,1820.4,1820.3,11.43429504]
[1680360378559,1.42866372,1820.5,1820.3,11.43429504]
[1680360379260,2.10977076,1820.5,1820.3,11.43429504]
[1680360379566,1.42866372,1820.5,1820.4,0.05910796]
[1680360379861,1.42866372,1820.5,1820.4,5.95968448]
[1680360380060,1.42866372,1820.5,1820.4,6.90057652]
[1680360380563,0.68111047,1820.5,1820.4,6.90057652]
[1680360380757,0.68111047,1820.6,1820.4,6.90057652]
[1680360380963,2.11248295,1820.5,1820.4,6.90057652]
[1680360381456,1.43137248,1820.5,1820.4,6.90057652]
[1680360381659,2.11248295,1820.5,1820.4,6.90057652]
[1680360382064,1.43137248,1820.5,1820.4,6.90057652]
[1680360382359,0.68111047,1820.5,1820.4,5.90057652]
[1680360382753,0.68111047,1820.5,1820.3,6.02978053]
[1680360382956,1.4311525,1820.4,1820.3,6.02978053]
[1680360383662,2.11226297,1820.4,1820.3,6.02978053]
[1680360384160,1.4311525,1820.4,1820.3,6.02978053]
[1680360387069,1.4311525,1820.4,1820.3,7.11878053]
[1680360391274,2.11228841,1820.4,1820.3,7.11878053]
[1680360391574,1.4311525,1820.4,1820.3,7.11878053]
[1680360394377,1.4311525,1820.4,1820.3,7.17784474]
[1680360396977,1.4311525,1820.4,1820.3,6.08884474]
[1680360399179,2.11229181,1820.4,1820.3,6.08884474]
[1680360399376,1.4311525,1820.4,1820.3,6.08884474]
[1680360399770,2.11230062,1820.4,1820.3,6.08884474]
[1680360399980,1.4311525,1820.4,1820.3,6.08884474]
[1680360400180,2.11229789,1820.4,1820.3,6.08884474]
[1680360400379,1.4311525,1820.4,1820.3,6.08884474]
[1680360402485,2.1122972,1820.4,1820.3,6.08884474]
[1680360402683,1.4311525,1820.4,1820.3,6.08884474]
[1680360407583,1.4311525,1820.4,1820.3,7.08884474]
[1680360408179,1.14467241,1820.4,1820.3,8.17784474]
[1680360411872,1.4311525,1820.4,1820.3,7.18684474]
[1680360412488,1.4311525,1820.4,1820.3,6.91284474]
[1680360413789,1.14487079,1820.4,1820.3,6.91284474]
[1680360414685,1.14493617,1820.4,1820.3,6.91284474]
[1680360416585,1.4311525,1820.5,1820.3,6.91284474]
[1680360417583,1.14477014,1820.4,1820.3,6.91284474]
[1680360418688,1.4311525,1820.5,1820.3,6.91284474]
[1680360418883,1.14500371,1820.4,1820.3,10.12064474]
[1680360420982,1.4311525,1820.4,1820.3,6.91284474]
[1680360422790,1.4311525,1820.5,1820.3,6.91284474]
[1680360422992,2.11226887,1820.5,1820.3,6.91284474]
[1680360423393,1.14522877,1820.4,1820.3,6.91284474]
[1680360423795,1.4311525,1820.5,1820.3,6.91284474]
[1680360424090,1.4311525,1820.4,1820.3,6.91284474]
[1680360424484,1.14517029,1820.4,1820.3,6.91284474]
[1680360424685,2.11226128,1820.5,1820.3,6.91284474]
[1680360424883,1.4311525,1820.4,1820.3,6.08884474]
[1680360425797,2.93626128,1820.5,1820.3,6.08884474]
[1680360427091,2.11226128,1820.5,1820.3,6.08884474]
[1680360428590,1.4311525,1820.4,1820.3,6.08884474]
[1680360429501,1.4311525,1820.4,1820.3,6.08511207]
[1680360429696,2.11228787,1820.4,1820.3,6.08511207]
[1680360431199,15.68126692,1820.4,1820.3,0.03960586]
[1680360431404,15.68126692,1820.4,1819.9,0.824]
[1680360431596,0.85844071,1820.0,1819.9,0.824]
[1680360431998,0.85844071,1820.0,1819.9,6.56598965]
[1680360436099,0.85844071,1820.0,1819.9,5.74198965]
[1680360436308,0.817,1819.9,1819.3,5.68914165]
[1680360436505,0.57192851,1819.7,1819.3,5.68914165]
[1680360436708,1.57192851,1819.7,1819.3,5.68914165]
[1680360436907,1.57192851,1819.7,1819.5,5.81840967]
[1680360437105,0.57192851,1819.7,1819.5,5.81840967]
[1680360439508,6.73662128,1819.8,1819.5,5.81840967]
[1680360439909,5.87872851,1819.8,1819.5,5.81840967]
[1680360444521,1.099,1819.6,1819.3,3.2078]
[1680360444925,1.0,1819.5,1819.3,3.2078]
[1680360445221,1.0,1819.5,1819.4,6.29964695]
[1680360446527,1.0,1819.5,1819.3,3.2078]
[1680360447122,2.099,1819.5,1819.3,3.2078]
[1680360449123,1.099,1819.4,1819.1,3.2078]
[1680360449733,1.099,1819.4,1819.2,5.85876784]
[1680360457032,1.099,1819.5,1819.2,5.85876784]
[1680360459039,1.099,1819.3,1819.2,5.85876784]
[1680360459245,2.099,1819.3,1819.2,5.85876784]
[1680360459441,1.099,1819.3,1819.1,6.04640649]
[1680360459642,1.099,1819.3,1819.0,1.15491689]
[1680360459938,1.099,1819.3,1819.2,6.24711222]
[1680360460246,1.099,1819.3,1819.0,1.0974874]
[1680360460542,1.099,1819.3,1819.2,5.9976454]
[1680360460939,1.099,1819.3,1819.1,6.03767435]
[1680360462541,1.099,1819.3,1818.9,3.2078]
[1680360462839,1.099,1819.3,1818.9,4.2078]
[1680360463041,1.099,1819.3,1819.0,1.0]
[1680360463251,1.099,1819.3,1819.0,7.3581524]
[1680360465145,3.2078,1819.4,1819.0,8.4571524]
[1680360469144,1.099,1819.5,1819.0,8.4571524]
[1680360470546,3.2078,1819.4,1819.0,8.4571524]
[1680360474952,3.2078,1819.4,1819.0,7.4571524]
[1680360475150,1.095,1819.3,1819.0,6.3581524]
[1680360478159,2.095,1819.3,1819.0,6.3581524]
[1680360478858,1.095,1819.3,1819.0,6.3581524]
[1680360480058,2.095,1819.3,1819.0,6.3581524]
[1680360480259,1.095,1819.3,1819.0,6.3581524]
[1680360481460,1.66692851,1819.3,1819.0,6.3581524]
[1680360482461,1.095,1819.3,1819.1,1.0]
[1680360482961,1.095,1819.3,1819.2,5.91437979]
[1680360483463,4.63762128,1819.4,1819.2,5.91437979]
[1680360485465,0.57192851,1819.3,1819.1,5.80525768]
[1680360485963,0.57192851,1819.4,1819.1,5.80525768]
[1680360486963,0.57192851,1819.4,1819.1,6.90425768]
[1680360487462,1.42982128,1819.4,1819.1,6.90425768]
[1680360488058,0.57192851,1819.3,1819.1,6.90425768]
[1680360489461,0.57192851,1819.2,1819.1,6.90425768]
[1680360489667,1.42982128,1819.3,1819.1,6.90425768]
[1680360490067,0.57192851,1819.2,1819.1,6.90425768]
[1680360494568,1.42982128,1819.3,1819.1,6.90425768]
[1680360494867,0.57192851,1819.2,1819.1,6.90425768]
[1680360495284,1.42982128,1819.3,1819.1,11.21105768]
[1680360495569,0.57192851,1819.3,1819.2,2.099]
[1680360495965,0.57192851,1819.3,1819.2,8.29599821]
[1680360497474,0.57192851,1819.3,1819.2,8.01299821]
[1680360499974,0.57192851,1819.3,1819.2,7.01299821]
[1680360500176,0.57192851,1819.3,1819.2,7.02099821]
[1680360500471,0.85789277,1819.3,1819.2,6.19699821]
[1680360500667,4.06569277,1819.3,1819.2,6.19699821]
[1680360500873,4.06569277,1819.3,1819.1,5.74724688]
[1680360501073,0.57244653,1819.2,1819.1,5.74724688]
[1680360501570,0.56648349,1819.2,1819.1,5.74724688]
[1680360501977,3.24237626,1819.2,1819.1,5.74724688]
[1680360502278,2.38448349,1819.2,1819.0,6.10503826]
[1680360502576,1.66548349,1819.2,1819.0,6.10503826]
[1680360502777,2.66548349,1819.2,1819.0,6.10503826]
[1680360502983,1.66548349,1819.2,1819.0,6.10503826]
[1680360503579,2.66548349,1819.2,1819.0,6.10503826]
[1680360504480,2.95689277,1819.2,1819.0,6.10503826]
[1680360504670,0.85789277,1819.1,1819.0,6.10503826]
[1680360504866,1.85789277,1819.1,1819.0,6.10503826]
[1680360506172,1.0,1819.1,1819.0,6.10503826]
[1680360507084,2.097,1819.1,1819.0,6.10503826]
[1680360507980,2.95489277,1819.1,1819.0,6.10503826]
[1680360508182,2.95489277,1819.1,1818.7,3.2078]
[1680360508783,2.95489277,1819.1,1818.8,5.96426308]
[1680360509275,1.95489277,1819.1,1818.8,5.96426308]
[1680360509480,1.95489277,1819.1,1818.8,6.96426308]
[1680360509681,1.95489277,1819.1,1818.8,5.96426308]
[1680360510284,1.097,1819.1,1818.8,5.96426308]
[1680360512980,5.16269277,1819.1,1818.8,5.96426308]
[1680360514288,1.0,1819.0,1818.8,5.96426308]
[1680360516386,4.3048,1819.1,1818.8,5.96426308]
[1680360516882,1.0,1819.0,1818.8,5.96426308]
[1680360517088,1.097,1818.9,1818.8,5.96426308]
[1680360520891,4.3048,1818.9,1818.7,6.18284199]
[1680360521387,4.3048,1818.9,1818.6,7.05604289]
[1680360521781,4.3048,1818.9,1818.6,6.05604289]
[1680360523382,3.2078,1818.9,1818.7,1.089]
[1680360523585,1.94689277,1819.1,1818.7,2.089]
[1680360523787,1.089,1819.1,1818.8,5.75368901]
[1680360526194,3.2078,1819.0,1818.8,5.75368901]
[1680360527887,0.85789277,1819.2,1818.8,6.84268901]
[1680360528089,0.85789277,1819.2,1818.8,1.089]
[1680360528592,0.85789277,1819.2,1818.9,6.0906956]
[1680360529393,3.2078,1819.1,1818.9,6.0906956]
[1680360529689,2.09,1819.0,1818.9,6.0906956]
[1680360529889,2.09,1819.0,1818.5,3.2078]
[1680360530197,4.3068,1818.9,1818.5,3.2078]
[1680360530495,4.3068,1818.9,1818.6,5.8620318]
[1680360531997,4.3068,1818.9,1818.5,5.92675079]
[1680360532299,4.3068,1818.9,1818.5,6.92675079]
[1680360532799,1.099,1818.9,1818.5,5.92675079]
[1680360532999,4.3068,1818.9,1818.5,6.92675079]
[1680360533799,4.3068,1818.9,1818.5,5.92675079]
[1680360534000,4.3068,1818.9,1818.5,6.92675079]
[1680360534200,4.3068,1818.9,1818.5,5.92675079]
[1680360534497,4.3068,1818.9,1818.5,6.92675079]
[1680360534799,4.3068,1818.9,1818.5,5.92675079]
[1680360535494,1.099,1818.6,1818.1,8.0583]
[1680360535689,1.099,1818.5,1818.1,9.74392092]
[1680360535891,1.099,1818.5,1818.1,10.74392092]
[1680360536092,1.099,1818.5,1818.2,5.96708899]
[1680360536294,4.3068,1818.5,1818.2,5.96708899]
[1680360537097,1.099,1818.4,1818.2,5.96708899]
[1680360537900,5.3048,1818.3,1818.2,5.96708899]
[1680360538406,4.3048,1818.3,1818.2,5.96708899]
[1680360539802,5.4038,1818.3,1817.6,5.27095428]
[1680360540003,1.099,1817.8,1817.6,5.27095428]
[1680360540507,1.099,1817.8,1817.7,6.34775162]
[1680360545406,1.099,1818.0,1817.7,6.34775162]
[1680360545606,3.2078,1817.9,1817.7,7.34775162]
[1680360545908,3.2078,1817.9,1817.7,6.34775162]
[1680360546103,3.2078,1817.9,1817.7,7.34775162]
[1680360546307,3.2078,1817.9,1817.7,6.34775162]
[1680360546608,1.099,1818.0,1817.7,6.34775162]
[1680360546909,1.099,1818.0,1817.7,7.34775162]
[1680360547597,1.099,1818.0,1817.7,6.34775162]
[1680360547801,1.099,1818.0,1817.7,7.34775162]
[1680360548204,1.099,1818.0,1817.7,6.34775162]
[1680360549512,3.2078,1817.9,1817.7,6.34775162]
[1680360551014,1.097,1817.8,1817.7,6.34775162]
[1680360551714,2.097,1817.8,1817.7,6.34775162]
[1680360552110,2.099,1817.8,1817.7,6.34775162]
[1680360554410,1.099,1817.8,1817.7,6.34775162]
[1680360557823,1.099,1817.8,1817.7,7.34775162]
[1680360558018,3.2078,1818.1,1817.7,8.44275162]
[1680360558614,3.2078,1818.1,1817.8,1.0]
[1680360559119,3.2078,1818.1,1817.9,6.05676301]
[1680360559617,1.09,1818.2,1818.0,1.0]
[1680360560318,1.09,1818.2,1817.9,6.05676301]
[1680360560709,3.2078,1818.1,1817.9,6.05676301]
[1680360560918,1.099,1818.0,1817.9,6.05676301]
[1680360561110,1.099,1818.0,1817.8,6.08957497]
[1680360561316,2.099,1818.0,1817.7,0.35676341]
[1680360562423,1.099,1818.0,1817.7,0.35676341]
[1680360566118,3.2078,1817.9,1817.7,0.35676341]
[1680360567124,4.3048,1817.9,1817.7,0.35676341]
[1680360568620,1.0,1817.8,1817.7,0.35676341]
[1680360569422,4.3048,1817.9,1817.7,0.35676341]
[1680360571025,1.097,1817.9,1817.7,0.35676341]
[1680360571824,4.3048,1817.9,1817.7,0.35676341]
[1680360572632,3.2078,1817.9,1817.7,0.35676341]
[1680360572926,1.099,1818.1,1817.7,0.35676341]
[1680360573331,1.099,1818.1,1817.7,4.56456341]
[1680360573731,4.3068,1818.1,1817.7,4.56456341]
[1680360574424,4.3068,1818.3,1817.8,2.099]
[1680360574731,4.3068,1818.3,1817.9,6.18297839]
[1680360575232,4.3068,1818.3,1818.0,1.0]
[1680360575427,1.099,1818.3,1818.0,1.0]
[1680360575728,3.2078,1818.5,1818.2,2.091]
[1680360575924,0.85789277,1818.6,1818.2,2.091]
[1680360576125,4.2968,1818.5,1818.3,6.32505669]
[1680360576929,1.089,1818.5,1818.3,6.32505669]
[1680360577134,1.95689277,1818.6,1818.3,6.32505669]
[1680360577537,1.099,1818.6,1818.3,6.32505669]
[1680360577734,1.099,1818.6,1818.4,1.0]
[1680360578131,1.95689277,1818.6,1818.5,5.6483402]
[1680360578336,4.06569277,1818.7,1818.5,5.6483402]
[1680360578536,0.85789277,1818.7,1818.5,5.6483402]
[1680360579439,1.95689277,1818.8,1818.5,5.6483402]
[1680360580330,0.85789277,1818.7,1818.5,5.6483402]
[1680360580527,1.95689277,1818.8,1818.5,5.6483402]
[1680360580728,3.2078,1817.8,1816.5,0.28714988]
[1680360580934,4.3068,1816.6,1816.1,4.8793]
[1680360581233,3.2078,1816.4,1816.1,5.9703]
[1680360581432,3.2078,1816.4,1816.1,4.8793]
[1680360581630,3.2078,1816.4,1816.2,6.79677691]
[1680360581631,0.06142885,1816.3,1816.2,6.79677691]
[1680360581832,3.2078,1816.3,1816.2,5.79677691]
[1680360582138,3.26923039,1816.3,1816.2,5.79677691]
[1680360584031,4.36823039,1816.3,1816.2,5.79677691]
[1680360584433,4.36823039,1816.3,1816.1,4.8793]
[1680360584627,1.089,1816.2,1816.1,4.8793]
[1680360585234,1.089,1816.2,1815.9,5.0316]
[1680360585441,4.2968,1816.0,1815.9,5.0316]
[1680360585943,4.3068,1816.2,1815.9,5.0316]
[1680360586130,3.2078,1816.2,1815.9,6.1226]
[1680360586331,3.2078,1816.2,1816.0,1.0]
[1680360586839,3.2078,1816.2,1816.1,5.80863338]
[1680360588238,3.2078,1816.4,1816.1,6.80863338]
[1680360588435,4.3068,1816.8,1816.3,1.095]
[1680360588634,16.0,1817.1,1816.2,1.089]
[1680360588635,3.2078,1816.6,1816.2,1.089]
[1680360588933,3.2078,1816.6,1816.4,6.3899041]
[1680360589127,0.03281045,1816.5,1816.3,1.58388486]
[1680360589329,0.03281045,1816.5,1816.3,1.0]
[1680360589539,1.089,1816.7,1816.4,6.13272258]
[1680360589936,1.089,1816.7,1816.5,1.0]
[1680360590134,4.2968,1816.7,1816.5,1.0]
[1680360590437,3.2078,1816.7,1816.6,5.7271527]
[1680360590634,4.2968,1816.7,1816.6,5.7271527]
[1680360590934,3.2078,1816.9,1816.6,1.099]
[1680360591235,3.2078,1816.9,1816.6,8.14743187]
[1680360591438,4.2978,1816.9,1816.6,7.04843187]
[1680360591734,4.2978,1816.9,1816.6,6.04843187]
[1680360592036,1.09,1816.9,1816.5,9.96412029]
[1680360592237,1.09,1816.9,1816.7,1.0]
[1680360592541,1.09,1816.9,1816.8,6.07392179]
[1680360592931,1.09,1816.9,1816.6,6.0315567]
[1680360593140,1.09,1816.9,1816.7,1.0]
[1680360593439,1.09,1816.9,1816.8,6.26726702]
[1680360594143,1.0485,1816.9,1816.8,6.26726702]
[1680360594440,3.2078,1817.0,1816.8,6.26726702]
[1680360595145,3.2078,1817.3,1816.9,1.092]
[1680360595341,3.2078,1817.3,1816.9,2.092]
[1680360595638,3.2078,1817.1,1817.0,6.78094217]
[1680360595843,3.2078,1817.1,1817.0,5.78094217]
[1680360596243,3.2078,1817.3,1817.0,5.78094217]
[1680360596847,3.2078,1817.3,1817.1,1.0]
[1680360597243,3.2078,1817.3,1817.2,6.13778629]
[1680360598251,3.2078,1817.5,1817.2,6.13778629]
[1680360598654,3.2078,1817.5,1817.3,1.0]
[1680360599049,1.097,1817.6,1817.4,6.28495292]
[1680360599451,3.2078,1817.7,1817.4,6.28495292]
[1680360599861,3.2078,1817.7,1817.5,1.0]
[1680360600262,1.089,1817.8,1817.6,5.70353972]
[1680360602561,1.089,1817.8,1817.5,6.30453151]
[1680360602757,1.089,1817.8,1817.6,1.0]
[1680360603158,1.089,1817.8,1817.7,5.72478117]
[1680360606965,4.3048,1817.9,1817.7,5.72478117]
[1680360607666,0.94756519,1818.0,1817.7,6.82378117]
[1680360608167,0.94756519,1818.0,1817.8,1.0]
[1680360608467,0.94756519,1818.0,1817.9,5.8066632]
[1680360610766,0.94756519,1818.0,1817.9,5.65509692]
[1680360610968,0.94756519,1818.0,1817.9,6.65509692]
[1680360611769,0.94756519,1818.0,1817.9,7.75409692]
[1680360611970,0.94756519,1818.0,1817.9,10.96189692]
[1680360612970,3.2078,1818.5,1818.0,1.0]
[1680360613168,3.2078,1818.5,1818.1,1.089]
[1680360613476,3.2078,1818.5,1818.2,1.0]
[1680360613868,3.2078,1818.5,1818.3,6.14946994]
[1680360614271,1.48864346,1819.0,1818.6,4.946]
[1680360614575,0.8487873,1819.2,1819.0,2.198]
[1680360614777,5.1455873,1819.6,1819.1,4.3068]
[1680360614981,5.1455873,1819.6,1819.1,10.43995886]
[1680360615281,4.2968,1819.6,1819.3,3.2078]
[1680360615674,4.2968,1819.6,1819.4,5.86458219]
[1680360616389,1.089,1819.6,1819.4,5.86458219]
[1680360617074,1.097,1819.7,1819.4,5.86458219]
[1680360617477,7.2545873,1819.8,1819.4,5.86458219]
[1680360618679,5.0565873,1819.8,1819.4,5.86458219]
[1680360619073,4.0565873,1819.8,1819.4,5.86458219]
[1680360619478,4.0565873,1819.8,1819.4,5.39125298]
[1680360621384,3.77217168,1819.8,1819.4,5.39125298]
[1680360621682,3.77217168,1819.8,1819.5,1.0]
[1680360622185,3.77217168,1819.8,1819.6,6.06728655]
[1680360622374,3.2078,1819.8,1819.6,6.06728655]
[1680360622571,3.2078,1819.8,1819.5,8.11744888]
[1680360624181,3.2078,1819.8,1819.6,0.04228747]
[1680360624585,3.2078,1819.8,1819.7,5.98090469]
[1680360624785,3.2078,1819.8,1819.7,5.03432415]
[1680360625479,5.4058,1819.8,1819.1,6.9662]
[1680360625676,3.2078,1819.6,1819.1,6.9662]
[1680360625882,1.0,1819.5,1819.2,0.03699699]
[1680360626077,1.0,1819.5,1819.2,5.72166696]
[1680360626275,3.2078,1819.6,1819.2,5.72166696]
[1680360626892,2.187,1819.7,1819.2,8.92946696]
[1680360627687,3.2078,1819.6,1819.2,8.92946696]
[1680360629790,3.2078,1819.6,1819.3,2.198]
[1680360630090,3.2078,1819.6,1819.4,5.38685389]
[1680360630492,6.96817168,1819.9,1819.4,5.38685389]
[1680360630991,6.96817168,1819.9,1819.4,8.59465389]
[1680360631492,6.96817168,1819.9,1819.4,8.12135031]
[1680360631687,1.0,1819.8,1819.4,8.12135031]
[1680360632085,6.96817168,1819.9,1819.4,8.12135031]
[1680360632890,6.81695898,1819.9,1819.4,8.12135031]
[1680360633292,0.56437168,1819.8,1819.4,8.12135031]
[1680360634590,1.56437168,1819.8,1819.4,8.12135031]
[1680360635093,0.56437168,1819.8,1819.4,8.12135031]
[1680360635595,1.41315898,1819.8,1819.4,4.91355031]
[1680360635794,3.2078,1819.7,1819.4,4.91355031]
[1680360636294,3.77217168,1819.7,1819.4,4.91355031]
[1680360638294,0.56437168,1819.7,1819.4,4.91355031]
[1680360638491,1.41315898,1819.7,1819.4,4.91355031]
[1680360638692,0.56437168,1819.6,1819.4,4.91355031]
[1680360639300,1.41315898,1819.7,1819.4,4.91355031]
[1680360639803,0.56437168,1819.6,1819.4,4.91355031]
[1680360640400,0.56437168,1819.5,1819.4,4.91355031]
[1680360640804,0.56437168,1819.5,1819.4,4.76208918]
[1680360641201,0.56437168,1819.6,1819.4,4.76208918]
[1680360641604,1.41315898,1819.6,1819.4,4.76208918]
[1680360641800,0.56437168,1819.5,1819.4,4.76208918]
[1680360642200,5.97017168,1819.5,1819.4,4.76208918]
[1680360642404,0.94667908,1819.3,1819.1,4.7822]
[1680360643094,0.94667908,1819.3,1819.2,5.90151628]
[1680360643508,1.51209718,1819.3,1819.2,5.42815473]
[1680360643706,7.91789718,1819.3,1819.1,4.7822]
[1680360644098,0.5654181,1819.2,1819.1,4.7822]
[1680360644304,1.5654181,1819.2,1819.1,4.7822]
[1680360644806,2.4142054,1819.2,1818.8,8.2215]
[1680360645601,0.5654181,1819.1,1818.9,6.14514823]
[1680360649714,0.5654181,1819.1,1819.0,1.0]
[1680360650115,0.5654181,1819.1,1819.0,5.97826313]
[1680360650308,0.5654181,1819.1,1819.0,9.18606313]
[1680360651415,0.5654181,1819.1,1819.0,11.38406313]
[1680360653113,0.5654181,1819.1,1819.0,9.18606313]
[1680360653613,0.8487873,1819.1,1819.0,9.18606313]
[1680360654213,0.8487873,1819.1,1819.0,5.97826313]
[1680360654411,0.85286364,1819.1,1819.0,5.97826313]
[1680360654617,1.85286364,1819.1,1818.9,5.93553668]
[1680360654916,1.42152231,1819.0,1818.9,5.93553668]
[1680360655511,0.85286364,1819.0,1818.9,5.93553668]
[1680360656622,0.8540998,1819.0,1818.9,5.93553668]
[1680360657525,1.1315198,1819.0,1818.9,5.93553668]
[1680360658112,2.42482019,1819.1,1818.9,5.93553668]
[1680360658312,2.14056221,1819.0,1818.9,5.93553668]
[1680360658515,2.14053999,1819.0,1818.9,5.93553668]
[1680360659018,1.14053999,1819.0,1818.9,5.93553668]
[1680360659209,2.42482019,1819.0,1818.8,5.0137]
[1680360659410,3.336591,1818.9,1818.8,5.0137]
[1680360659610,16.06914704,1818.9,1818.6,4.9332]
[1680360659807,1.14255344,1818.7,1818.6,4.9332]
[1680360660215,2.14255344,1818.7,1818.6,10.84186886]
[1680360660420,1.14255344,1818.7,1818.6,10.84186886]
[1680360661517,4.34055344,1818.7,1818.3,3.2078]
[1680360661717,0.8568584,1818.4,1818.3,3.2078]
[1680360662118,0.8568584,1818.4,1818.3,9.09115575]
[1680360662315,1.14247787,1818.4,1818.3,9.09115575]
[1680360662621,1.14247787,1818.4,1818.2,4.9436]
[1680360662622,2.14247787,1818.4,1818.2,4.9436]
[1680360662822,0.85670261,1818.3,1818.2,4.9436]
[1680360663025,1.85670261,1818.3,1818.2,4.9436]
[1680360663226,0.85670261,1818.3,1818.2,4.9436]
[1680360663415,1.42732008,1818.3,1818.2,4.9436]